fUSD/lending_fUSD_20260520
["ID","MTS","AMOUNT","RATE_DAILY","PERIOD"]
[422650685,1779206405000,216.390446,0.00028014,120]
[422650686,1779206419000,673.04,0.00026236,120]
[422650687,1779206442000,529.536487,0.00028053,120]
[422650688,1779206484000,179.664166,0.00028027,120]
[422650689,1779206539000,500.0,0.00029095,120]
[422650690,1779206551000,4670.20012795,8e-05,2]
[422650691,1779206565000,500.0,0.00029095,120]
[422650695,1779206732000,5317.85639944,9.04e-05,2]
[422650699,1779206781000,-49222.36,0.000107,2]
[422650698,1779206781000,-215.15951567,0.00010504,2]
[422650697,1779206781000,-160.0,0.00010504,2]
[422650696,1779206781000,-360.54032943,0.0001042,2]
[422650701,1779206942000,-782.90906683,0.00011899,2]
[422650700,1779206942000,-217.09093317,0.00011799,2]
[422650705,1779206949000,-217.74955116,0.000119,2]
[422650704,1779206949000,-150.0,0.00011899,2]
[422650703,1779206949000,-215.15951567,0.00011899,2]
[422650702,1779206949000,-417.09093317,0.00011899,2]
[422650706,1779206957000,-1000.0,0.000119,2]
[422650707,1779206965000,-1000.0,0.000119,2]
[422650711,1779206997000,-1000.0,0.00011899,2]
[422650714,1779207005000,-300.0,0.000119,2]
[422650713,1779207005000,-200.0,0.00011899,2]
[422650728,1779207032000,-5412.79929364,0.0001305,2]
[422650743,1779207032000,-163.43,0.00013698,2]
[422650741,1779207032000,-299.36,0.00013698,2]
[422650747,1779207032000,-166.66,0.00013905,2]
[422650739,1779207032000,-500.0,0.00013698,2]
[422650738,1779207032000,-500.0,0.00013698,2]
[422650736,1779207032000,-150.0,0.00013695,2]
[422650730,1779207032000,-158.58,0.00013273,2]
[422650731,1779207032000,-150.0,0.00013488,2]
[422650729,1779207032000,-480.0,0.00013064,2]
[422650720,1779207032000,-58329.41316215,0.000119,2]
[422650734,1779207032000,-4474.92,0.00013668,2]
[422650726,1779207032000,-13144.40498153,0.00013,5]
[422650723,1779207032000,-10659.22986112,0.000119,2]
[422650733,1779207032000,-19611.25,0.00013568,2]
[422650732,1779207032000,-500.0,0.00013568,2]
[422650724,1779207032000,-3883.15482524,0.000129,2]
[422650721,1779207032000,-3207.38,0.000119,2]
[422650722,1779207032000,-882.31924771,0.000119,2]
[422650719,1779207032000,-12694.02474169,0.000119,2]
[422650753,1779207032000,-166.66,0.00014524,2]
[422650725,1779207032000,-1554.36675008,0.00013,2]
[422650745,1779207032000,-166.66,0.00013699,2]
[422650750,1779207032000,-166.66,0.00014111,2]
[422650751,1779207032000,-167.29,0.00014123,2]
[422650775,1779207032000,-500.0,0.00014897,2]
[422650752,1779207032000,-166.66,0.00014318,2]
[422650774,1779207032000,-500.0,0.00014897,2]
[422650773,1779207032000,-480.8476327,0.00014889,2]
[422650770,1779207032000,-13725.82883689,0.00014871,2]
[422650772,1779207032000,-13725.82883689,0.00014886,2]
[422650771,1779207032000,-480.8476327,0.00014878,2]
[422650761,1779207032000,-13725.82883689,0.00014813,2]
[422650763,1779207032000,-13725.82883689,0.00014828,2]
[422650759,1779207032000,-2500.0,0.00014799,2]
[422650760,1779207032000,-480.8476327,0.0001481,2]
[422650758,1779207032000,-13725.82883693,0.00014799,2]
[422650769,1779207032000,-480.8476327,0.00014866,2]
[422650765,1779207032000,-13725.82883689,0.00014842,2]
[422650756,1779207032000,-166.66,0.0001473,2]
[422650764,1779207032000,-480.8476327,0.00014833,2]
[422650762,1779207032000,-480.8476327,0.00014821,2]
[422650768,1779207032000,-13725.82883689,0.00014857,2]
[422650767,1779207032000,-480.8476327,0.00014855,2]
[422650757,1779207032000,-480.84763275,0.00014799,2]
[422650754,1779207032000,-161.19452201,0.00014558,5]
[422650755,1779207032000,-200.0,0.00014724,2]
[422650766,1779207032000,-480.8476327,0.00014844,2]
[422650749,1779207032000,-250.0,0.00014,2]
[422650791,1779207033000,-43303.95822435,0.00014899,2]
[422650788,1779207033000,-500.0,0.00014899,2]
[422650794,1779207033000,-43303.95822435,0.00014899,2]
[422650799,1779207033000,-43303.95822435,0.000149,2]
[422650801,1779207033000,-43303.95822435,0.000149,2]
[422650804,1779207033000,-3893.28791994,0.000149,2]
[422650805,1779207033000,-1891.7756,0.000149,2]
[422650795,1779207033000,-43303.95822435,0.000149,2]
[422650798,1779207033000,-43303.95822435,0.000149,2]
[422650806,1779207033000,-809.20149524,0.000149,2]
[422650792,1779207033000,-43303.95822435,0.00014899,2]
[422650796,1779207033000,-167.29,0.000149,2]
[422650790,1779207033000,-507.96586285,0.00014899,2]
[422650776,1779207033000,-500.0,0.00014897,2]
[422650787,1779207033000,-543.15147869,0.00014899,2]
[422650786,1779207033000,-500.0,0.00014899,2]
[422650785,1779207033000,-340.80315355,0.00014899,2]
[422650784,1779207033000,-500.0,0.00014899,2]
[422650782,1779207033000,-500.0,0.00014899,2]
[422650783,1779207033000,-500.0,0.00014899,2]
[422650793,1779207033000,-43303.95822435,0.00014899,2]
[422650777,1779207033000,-500.0,0.00014897,2]
[422650779,1779207033000,-43303.95822443,0.00014899,2]
[422650778,1779207033000,-500.0,0.00014899,2]
[422650781,1779207033000,-500.0,0.00014899,2]
[422650780,1779207033000,-299.29143377,0.00014899,2]
[422650800,1779207033000,-5676.58636403,0.000149,3]
[422650789,1779207033000,-500.0,0.00014899,2]
[422650802,1779207033000,-480.8476327,0.000149,2]
[422650819,1779207033000,-500.0,0.00014897,2]
[422650803,1779207033000,-13725.82883689,0.000149,2]
[422650797,1779207033000,-43303.95822435,0.000149,2]
[422650834,1779207033000,-357.55759253,0.00015,2]
[422650829,1779207033000,-500.0,0.00014897,2]
[422650832,1779207033000,-500.0,0.00014897,2]
[422650827,1779207033000,-500.0,0.00014897,2]
[422650831,1779207033000,-500.0,0.00014897,2]
[422650833,1779207033000,-500.0,0.00014897,2]
[422650830,1779207033000,-787.09608492,0.00015,2]
[422650828,1779207033000,-500.0,0.00014897,2]
[422650825,1779207033000,-5137.18402689,0.00015,2]
[422650824,1779207033000,-461.86712245,0.00014897,2]
[422650826,1779207033000,-500.0,0.00014897,2]
[422650823,1779207033000,-38.13287755,0.00014897,2]
[422650822,1779207033000,-500.0,0.00014897,2]
[422650835,1779207033000,-408.32694597,0.00015,2]
[422650821,1779207033000,-500.0,0.00014897,2]
[422650808,1779207033000,-5000.0,0.000149,2]
[422650820,1779207033000,-500.0,0.00014897,2]
[422650807,1779207033000,-25770.51779518,0.000149,2]
[422650812,1779207033000,-455.93014566,0.00014897,2]
[422650809,1779207033000,-150.0,0.00014986,2]
[422650811,1779207033000,-74061.71411299,0.00015,2]
[422650810,1779207033000,-144225.32012565,0.00015,2]
[422650818,1779207033000,-500.0,0.00014897,2]
[422650815,1779207033000,-178.15518611,0.00014897,2]
[422650817,1779207033000,-1.18924571,0.00014897,2]
[422650816,1779207033000,-498.81075429,0.00014897,2]
[422650813,1779207033000,-44.06985434,0.00014897,2]
[422650814,1779207033000,-300.74321534,0.00014897,2]
[422650859,1779207038000,-500.0,0.00014897,2]
[422650851,1779207038000,-500.0,0.00014897,2]
[422650857,1779207038000,-500.0,0.00014897,2]
[422650856,1779207038000,-500.0,0.00014897,2]
[422650854,1779207038000,-500.0,0.00014897,2]
[422650853,1779207038000,-500.0,0.00014897,2]
[422650852,1779207038000,-500.0,0.00014897,2]
[422650855,1779207038000,-500.0,0.00014897,2]
[422650850,1779207038000,-500.0,0.00014897,2]
[422650844,1779207038000,-1081.17968216,0.0001485,2]
[422650848,1779207038000,-587.01888165,0.00014897,2]
[422650846,1779207038000,-291.09398774,0.00014897,2]
[422650847,1779207038000,-500.0,0.00014897,2]
[422650845,1779207038000,-208.90601226,0.00014897,2]
[422650843,1779207038000,-410.5,0.0001485,2]
[422650841,1779207038000,-1237.26354397,0.000148,2]
[422650842,1779207038000,-118.31994406,0.0001485,2]
[422650840,1779207038000,-372.73608226,0.000148,2]
[422650871,1779207038000,-500.0,0.00014897,2]
[422650849,1779207038000,-500.0,0.00014897,2]
[422650872,1779207038000,-500.0,0.00014897,2]
[422650877,1779207038000,-400.54382372,0.00014897,2]
[422650873,1779207038000,-500.0,0.00014897,2]
[422650889,1779207038000,-767.54052114,0.00015,2]
[422650887,1779207038000,-50000.0,0.00015,2]
[422650879,1779207038000,-500.0,0.00014897,2]
[422650882,1779207038000,-500.0,0.00014897,2]
[422650883,1779207038000,-1998899.05363187,0.00015,2]
[422650881,1779207038000,-500.0,0.00014897,2]
[422650878,1779207038000,-500.0,0.00014897,2]
[422650880,1779207038000,-500.0,0.00014897,2]
[422650876,1779207038000,-500.0,0.00014897,2]
[422650875,1779207038000,-500.0,0.00014897,2]
[422650874,1779207038000,-500.0,0.00014897,2]
[422650884,1779207038000,-3460.0,0.00015,2]
[422650865,1779207038000,-500.0,0.00014897,2]
[422650867,1779207038000,-500.0,0.00014897,2]
[422650863,1779207038000,-500.0,0.00014897,2]
[422650860,1779207038000,-500.0,0.00014897,2]
[422650869,1779207038000,-500.0,0.00014897,2]
[422650858,1779207038000,-500.0,0.00014897,2]
[422650870,1779207038000,-500.0,0.00014897,2]
[422650862,1779207038000,-500.0,0.00014897,2]
[422650981,1779207040000,-1124.0615707,0.00015,2]
[422650980,1779207040000,-774.31587832,0.00015,2]
[422650982,1779207040000,-7385.00000001,0.00015,2]
[422650983,1779207041000,-217564.81489577,0.00015,2]
[422650984,1779207041000,-1188.44991006,0.00015,2]
[422650985,1779207041000,-16427.08133752,0.00015,2]
[422651006,1779207046000,-1609.99962622,0.000149,2]
[422651007,1779207046000,-7366.5013564,0.00015,2]
[422651010,1779207046000,-9354.85122343,0.00015,2]
[422651008,1779207046000,-987.18575986,0.00015,2]
[422651009,1779207046000,-48589.89028097,0.00015,2]
[422651014,1779207047000,-470.1598604,0.00015,2]
[422651013,1779207047000,-491.12613771,0.00015,2]
[422651012,1779207047000,-322.75040581,0.00015,2]
[422651011,1779207047000,-351.714966,0.00015,2]
[422651062,1779207082000,500.0,0.00029095,120]
[422651064,1779207091000,281.76,0.00028029,120]
[422651063,1779207091000,281.76,0.00025226,120]
[422651065,1779207095000,500.0,0.00029095,120]
[422651066,1779207304000,158.58,7.09e-05,2]
[422651070,1779207594000,5000.0,0.00030136,120]
[422651072,1779207634000,5000.0,0.00030136,120]
[422651073,1779207674000,5000.0,0.00030136,120]
[422651074,1779207676000,-226.19,0.00012784,2]
[422651075,1779207678000,10000.0,0.00030137,120]
[422651076,1779207692000,2143.0,0.00030137,120]
[422651077,1779207716000,4194.6164635,0.00030136,120]
[422651078,1779208011000,-159.80991131,0.00012765,2]
[422651080,1779208084000,165.25,7.539e-05,2]
[422651079,1779208084000,165.25,6.499e-05,2]
[422651082,1779208085000,165.25,9.621e-05,2]
[422651081,1779208085000,165.25,8.58e-05,2]
[422651083,1779208145000,1000.0,0.00030136,120]
[422651084,1779208158000,10000.0,0.00030137,120]
[422651085,1779208165000,10000.0,0.00030137,120]
[422651086,1779208171000,10000.0,0.00030137,120]
[422651087,1779208176000,10000.0,0.00030137,120]
[422651088,1779208184000,10000.0,0.00030137,120]
[422651089,1779208190000,10000.0,0.00030137,120]
[422651090,1779208195000,10000.0,0.00030137,120]
[422651091,1779208201000,10000.0,0.00030137,120]
[422651092,1779208207000,10000.0,0.00030137,120]
[422651093,1779208213000,10000.0,0.00030137,120]
[422651094,1779208218000,10000.0,0.00030137,120]
[422651095,1779208224000,10000.0,0.00030137,120]
[422651096,1779208230000,10000.0,0.00030137,120]
[422651114,1779208231000,-250.0,0.00013215,2]
[422651116,1779208231000,-519.0,0.00013425,2]
[422651115,1779208231000,-267.0,0.00013395,2]
[422651118,1779208231000,-300.0,0.00013428,2]
[422651119,1779208231000,-300.0,0.00013428,2]
[422651120,1779208231000,-300.0,0.00013428,2]
[422651117,1779208231000,-150.0,0.00013428,2]
[422651121,1779208231000,-208.58623393,0.00013429,2]
[422651123,1779208231000,-150.0,0.00013488,2]
[422651125,1779208231000,-151.300204,0.00013488,2]
[422651127,1779208231000,-150.0,0.00013488,2]
[422651126,1779208231000,-150.0,0.00013488,2]
[422651131,1779208231000,-150.0,0.00013488,2]
[422651132,1779208231000,-152.29001564,0.00013488,2]
[422651122,1779208231000,-150.0,0.00013488,2]
[422651113,1779208231000,-4718.55,0.00013135,2]
[422651111,1779208231000,-250.0,0.00012957,2]
[422651112,1779208231000,-1200.0,0.00013134,2]
[422651130,1779208231000,-150.0,0.00013488,2]
[422651097,1779208231000,-164.38,0.00010212,2]
[422651100,1779208231000,-581.85011332,0.00011233,2]
[422651098,1779208231000,-165.25,0.00010661,2]
[422651099,1779208231000,-60.74271931,0.00011233,2]
[422651102,1779208231000,-160.0,0.00011702,2]
[422651110,1779208231000,-150.0,0.00012779,2]
[422651101,1779208231000,-165.25,0.00011702,2]
[422651107,1779208231000,-188.61,0.00012729,2]
[422651106,1779208231000,-150.35,0.00012717,2]
[422651108,1779208231000,-165.25,0.00012742,2]
[422651103,1779208231000,-457.94750668,0.00012665,2]
[422651104,1779208231000,-1062.65425478,0.00012665,2]
[422651109,1779208231000,-2.95008869,0.00012765,2]
[422651105,1779208231000,-500.0,0.00012685,2]
[422651129,1779208231000,-150.0,0.00013488,2]
[422651124,1779208231000,-150.0,0.00013488,2]
[422651133,1779208231000,-150.0,0.00013488,2]
[422651161,1779208231000,-150.0,0.00013595,2]
[422651164,1779208231000,-150.0,0.00013603,2]
[422651162,1779208231000,-150.0,0.00013595,2]
[422651166,1779208231000,-152.29001564,0.00013609,2]
[422651169,1779208231000,-152.29001564,0.00013624,2]
[422651170,1779208231000,-150.0,0.0001363,2]
[422651172,1779208231000,-152.29001564,0.00013639,2]
[422651171,1779208231000,-2000.0,0.00013635,2]
[422651173,1779208231000,-200.0,0.00013642,2]
[422651177,1779208231000,-152.29001564,0.00013654,2]
[422651175,1779208231000,-150.0,0.00013645,2]
[422651178,1779208231000,-150.0,0.00013661,2]
[422651174,1779208231000,-500.0,0.00013642,2]
[422651179,1779208231000,-150.0,0.00013666,2]
[422651128,1779208231000,-150.0,0.00013488,2]
[422651163,1779208231000,-500.0,0.00013599,2]
[422651167,1779208231000,-170.208156,0.0001361,2]
[422651176,1779208231000,-150.0,0.00013654,2]
[422651160,1779208231000,-152.29001564,0.00013594,2]
[422651168,1779208231000,-179.664166,0.00013618,2]
[422651134,1779208231000,-152.29001564,0.00013503,2]
[422651136,1779208231000,-152.29001564,0.00013518,2]
[422651148,1779208231000,-150.0,0.00013559,2]
[422651150,1779208231000,-2002.62,0.00013562,2]
[422651152,1779208231000,-152.29001564,0.00013563,2]
[422651154,1779208231000,-150.0,0.00013567,2]
[422651138,1779208231000,-150.0,0.00013523,2]
[422651142,1779208231000,-150.0,0.00013545,2]
[422651146,1779208231000,-152.29001564,0.00013548,2]
[422651144,1779208231000,-150.0,0.00013548,2]
[422651155,1779208231000,-152.29001564,0.00013578,2]
[422651157,1779208231000,-3648.06,0.00013582,2]
[422651140,1779208231000,-152.29001564,0.00013533,2]
[422651159,1779208231000,-150.0,0.00013588,2]
[422651222,1779208232000,-200.0,0.0001389,2]
[422651219,1779208232000,-211.96,0.00013886,2]
[422651220,1779208232000,-3745.63,0.00013887,2]
[422651217,1779208232000,-152.29001564,0.00013881,2]
[422651218,1779208232000,-150.0,0.00013882,2]
[422651213,1779208232000,-150.0,0.00013862,2]
[422651212,1779208232000,-150.0,0.00013862,2]
[422651214,1779208232000,-152.29001564,0.00013866,2]
[422651215,1779208232000,-166.66,0.00013873,2]
[422651208,1779208232000,-150.0,0.00013834,2]
[422651211,1779208232000,-152.29001564,0.00013851,2]
[422651216,1779208232000,-150.0,0.0001388,2]
[422651221,1779208232000,-150.0,0.00013887,2]
[422651230,1779208232000,-152.29001564,0.00013927,2]
[422651225,1779208232000,-152.29001564,0.00013912,2]
[422651227,1779208232000,-150.0,0.00013916,2]
[422651226,1779208232000,-150.0,0.00013916,2]
[422651223,1779208232000,-150.0,0.00013891,2]
[422651228,1779208232000,-500.0,0.00013916,2]
[422651229,1779208232000,-161.58832768,0.0001392,2]
[422651231,1779208232000,-152.29001564,0.00013942,2]
[422651233,1779208232000,-150.0,0.00013952,2]
[422651234,1779208232000,-152.29001564,0.00013957,2]
[422651237,1779208232000,-152.29001564,0.00013972,2]
[422651209,1779208232000,-152.29001564,0.00013836,2]
[422651239,1779208232000,-8345.91554331,0.0001398,2]
[422651224,1779208232000,-152.29001564,0.00013896,2]
[422651210,1779208232000,-150.0,0.00013844,2]
[422651189,1779208232000,-152.29001564,0.00013715,2]
[422651205,1779208232000,-150.0,0.00013809,2]
[422651236,1779208232000,-150.0,0.00013961,2]
[422651180,1779208232000,-152.29001564,0.00013669,2]
[422651181,1779208232000,-150.0,0.00013675,2]
[422651184,1779208232000,-166.66,0.00013699,2]
[422651183,1779208232000,-150.0,0.00013687,2]
[422651182,1779208232000,-152.29001564,0.00013684,2]
[422651185,1779208232000,-465.17,0.00013699,2]
[422651187,1779208232000,-150.0,0.00013702,2]
[422651188,1779208232000,-150.0,0.00013702,2]
[422651186,1779208232000,-152.29001564,0.000137,2]
[422651191,1779208232000,-150.0,0.00013724,2]
[422651190,1779208232000,-150.0,0.00013718,2]
[422651207,1779208232000,-152.29001564,0.00013821,2]
[422651192,1779208232000,-152.29001564,0.0001373,2]
[422651194,1779208232000,-152.29001564,0.00013745,2]
[422651195,1779208232000,-152.29001564,0.0001376,2]
[422651196,1779208232000,-150.0,0.00013773,2]
[422651197,1779208232000,-152.29001564,0.00013775,2]
[422651198,1779208232000,-150.0,0.00013776,2]
[422651199,1779208232000,-150.0,0.00013787,2]
[422651201,1779208232000,-162.69,0.00013802,2]
[422651200,1779208232000,-152.29001564,0.0001379,2]
[422651202,1779208232000,-150.0,0.00013803,2]
[422651203,1779208232000,-152.29001564,0.00013806,2]
[422651206,1779208232000,-150.0,0.00013821,2]
[422651204,1779208232000,-150.0,0.00013809,2]
[422651193,1779208232000,-150.0,0.00013737,2]
[422651240,1779208232000,-150.0,0.00013987,2]
[422651283,1779208232000,-150.0,0.00014187,2]
[422651238,1779208232000,-162.0,0.0001398,2]
[422651268,1779208232000,-150.0,0.00014094,2]
[422651269,1779208232000,-152.29001564,0.00014108,2]
[422651272,1779208232000,-152.29001564,0.00014123,2]
[422651271,1779208232000,-150.0,0.00014122,2]
[422651273,1779208232000,-150.0,0.0001413,2]
[422651274,1779208232000,-150.0,0.0001413,2]
[422651276,1779208232000,-152.29001564,0.00014139,2]
[422651277,1779208232000,-152.29001564,0.00014154,2]
[422651278,1779208232000,-150.0,0.00014154,2]
[422651279,1779208232000,-150.0,0.00014166,2]
[422651280,1779208232000,-152.29001564,0.00014169,2]
[422651286,1779208232000,-152.29001564,0.00014199,2]
[422651270,1779208232000,-150.0,0.00014119,2]
[422651282,1779208232000,-152.29001564,0.00014184,2]
[422651285,1779208232000,-150.0,0.00014198,2]
[422651284,1779208232000,-500.0,0.0001419,2]
[422651281,1779208232000,-150.0,0.00014179,2]
[422651287,1779208232000,-150.0,0.00014201,2]
[422651289,1779208232000,-166.66,0.00014222,2]
[422651288,1779208232000,-152.29001564,0.00014214,2]
[422651291,1779208232000,-3745.63,0.00014234,2]
[422651290,1779208232000,-152.29001564,0.00014229,2]
[422651294,1779208232000,-150.0,0.00014237,2]
[422651296,1779208232000,-150.0,0.00014237,2]
[422651295,1779208232000,-150.0,0.00014237,2]
[422651232,1779208232000,-150.0,0.00013949,2]
[422651293,1779208232000,-150.0,0.00014237,2]
[422651275,1779208232000,-6803.7659,0.00014134,2]
[422651292,1779208232000,-150.0,0.00014237,2]
[422651265,1779208232000,-152.29001564,0.00014078,2]
[422651235,1779208232000,-165.69,0.00013957,2]
[422651267,1779208232000,-152.29001564,0.00014093,2]
[422651242,1779208232000,-150.0,0.00013987,2]
[422651243,1779208232000,-152.29001564,0.00013987,2]
[422651244,1779208232000,-1000.0,0.00013989,2]
[422651245,1779208232000,-1001.85276495,0.00013989,2]
[422651246,1779208232000,-34363.75804263,0.0001399,2]
[422651251,1779208232000,-150.0,0.00014006,2]
[422651249,1779208232000,-250.0,0.00014,2]
[422651247,1779208232000,-188.1,0.0001399,2]
[422651250,1779208232000,-152.29001564,0.00014002,2]
[422651248,1779208232000,-162.0,0.0001399,2]
[422651253,1779208232000,-150.0,0.00014023,2]
[422651241,1779208232000,-150.0,0.00013987,2]
[422651252,1779208232000,-152.29001564,0.00014017,2]
[422651255,1779208232000,-152.29001564,0.00014033,2]
[422651266,1779208232000,-150.0,0.00014087,2]
[422651263,1779208232000,-152.29001564,0.00014063,2]
[422651260,1779208232000,-150.0,0.0001405,2]
[422651262,1779208232000,-150.0,0.00014059,2]
[422651264,1779208232000,-150.0,0.00014064,2]
[422651261,1779208232000,-250.0,0.00014057,2]
[422651258,1779208232000,-166.66,0.00014048,2]
[422651259,1779208232000,-152.29001564,0.00014048,2]
[422651256,1779208232000,-150.0,0.0001404,2]
[422651254,1779208232000,-150.0,0.00014023,2]
[422651257,1779208232000,-206.14188101,0.00014042,2]
[422651324,1779208233000,-150.0,0.0001438,2]
[422651334,1779208233000,-500.0,0.0001438,2]
[422651325,1779208233000,-500.0,0.0001438,2]
[422651328,1779208233000,-500.0,0.0001438,2]
[422651327,1779208233000,-500.0,0.0001438,2]
[422651329,1779208233000,-500.0,0.0001438,2]
[422651332,1779208233000,-500.0,0.0001438,2]
[422651333,1779208233000,-500.0,0.0001438,2]
[422651326,1779208233000,-500.0,0.0001438,2]
[422651339,1779208233000,-150.0,0.00014387,2]
[422651336,1779208233000,-150.0,0.0001438,2]
[422651335,1779208233000,-343.58301202,0.0001438,2]
[422651337,1779208233000,-162.0,0.0001438,2]
[422651338,1779208233000,-152.29001564,0.00014381,2]
[422651342,1779208233000,-150.0,0.0001441,2]
[422651340,1779208233000,-152.29001564,0.00014396,2]
[422651346,1779208233000,-152.29001564,0.00014426,2]
[422651341,1779208233000,-166.66,0.00014396,2]
[422651345,1779208233000,-150.0,0.00014424,2]
[422651317,1779208233000,-162.76,0.00014361,2]
[422651343,1779208233000,-152.29001564,0.00014411,2]
[422651331,1779208233000,-500.0,0.0001438,2]
[422651318,1779208233000,-152.29001564,0.00014366,2]
[422651308,1779208233000,-150.0,0.00014308,2]
[422651322,1779208233000,-150.0,0.0001438,2]
[422651347,1779208233000,-150.0,0.00014434,2]
[422651299,1779208233000,-152.29001564,0.0001426,2]
[422651298,1779208233000,-152.29001564,0.00014245,2]
[422651297,1779208233000,-150.0,0.00014237,2]
[422651300,1779208233000,-150.0,0.00014273,2]
[422651301,1779208233000,-152.29001564,0.00014275,2]
[422651302,1779208233000,-162.0,0.00014275,2]
[422651304,1779208233000,-150.0,0.00014287,2]
[422651303,1779208233000,-150.0,0.00014276,2]
[422651306,1779208233000,-150.0,0.00014295,2]
[422651305,1779208233000,-152.29001564,0.0001429,2]
[422651307,1779208233000,-152.29001564,0.00014305,2]
[422651311,1779208233000,-152.29001564,0.00014335,2]
[422651309,1779208233000,-150.0,0.0001432,2]
[422651312,1779208233000,-150.0,0.00014344,2]
[422651310,1779208233000,-152.29001564,0.0001432,2]
[422651313,1779208233000,-150.0,0.00014344,2]
[422651315,1779208233000,-150.0,0.00014352,2]
[422651314,1779208233000,-152.29001564,0.00014351,2]
[422651316,1779208233000,-150.0,0.00014355,2]
[422651321,1779208233000,-150.0,0.0001438,2]
[422651319,1779208233000,-150.0,0.0001438,2]
[422651323,1779208233000,-150.0,0.0001438,2]
[422651320,1779208233000,-150.0,0.0001438,2]
[422651344,1779208233000,-150.0,0.00014415,2]
[422651330,1779208233000,-500.0,0.0001438,2]
[422651349,1779208233000,-1680.0,0.00014447,2]
[422651377,1779208233000,-150.0,0.00014525,2]
[422651378,1779208233000,-193.00761691,0.00014531,2]
[422651382,1779208233000,-150.0,0.00014531,2]
[422651380,1779208233000,-302.90609131,0.00014531,2]
[422651381,1779208233000,-197.09390869,0.00014531,2]
[422651383,1779208233000,-500.0,0.00014531,2]
[422651384,1779208233000,-150.0,0.00014531,2]
[422651385,1779208233000,-2.90609131,0.00014531,2]
[422651387,1779208233000,-500.0,0.00014531,2]
[422651386,1779208233000,-497.09390869,0.00014531,2]
[422651388,1779208233000,-500.0,0.00014531,2]
[422651389,1779208233000,-231.6145344,0.00014531,2]
[422651391,1779208233000,-500.0,0.00014531,2]
[422651390,1779208233000,-14.1715563,0.00014531,2]
[422651392,1779208233000,-346.61813023,0.00014531,2]
[422651393,1779208233000,-153.38186977,0.00014531,2]
[422651395,1779208233000,-289.79165268,0.00014531,2]
[422651394,1779208233000,-210.20834732,0.00014531,2]
[422651397,1779208233000,-292.42327193,0.00014531,2]
[422651399,1779208233000,-199.20765966,0.00014531,2]
[422651396,1779208233000,-500.0,0.00014531,2]
[422651398,1779208233000,-500.0,0.00014531,2]
[422651348,1779208233000,-152.29001564,0.00014441,2]
[422651376,1779208233000,-150.0,0.00014522,2]
[422651375,1779208233000,-152.29001564,0.00014517,2]
[422651379,1779208233000,-306.99238309,0.00014531,2]
[422651373,1779208233000,-827.81916401,0.00014505,2]
[422651350,1779208233000,-300.0,0.00014448,2]
[422651352,1779208233000,-150.0,0.00014451,2]
[422651351,1779208233000,-150.0,0.00014451,2]
[422651353,1779208233000,-152.29001564,0.00014456,2]
[422651356,1779208233000,-152.29001564,0.00014472,2]
[422651374,1779208233000,-150.0,0.00014513,2]
[422651358,1779208233000,-500.0,0.00014472,2]
[422651361,1779208233000,-150.0,0.00014472,2]
[422651355,1779208233000,-150.0,0.00014468,2]
[422651357,1779208233000,-500.0,0.00014472,2]
[422651354,1779208233000,-500.0,0.00014464,2]
[422651362,1779208233000,-33.29837308,0.00014472,2]
[422651359,1779208233000,-458.77621057,0.00014472,2]